bitfinex/quotes_SOLUSD_20250811
["timestamp","ask_amount","ask_price","bid_price","bid_amount"]
[1754946467737,4.31663043,176.52,176.42,5.66829157]
[1754946468042,4.31663043,176.52,176.46,26.7]
[1754946468043,3.92663043,176.49,176.46,26.7]
[1754946468230,3.92663043,176.49,176.47,39.46]
[1754946469433,3.92663043,176.49,176.47,40.16]
[1754946469762,0.36,176.51,176.47,40.16]
[1754946469763,3.92663043,176.5,176.47,40.16]
[1754946470664,6.13497894,176.5,176.47,40.16]
[1754946471760,6.13497894,176.51,176.47,40.16]
[1754946472060,6.13497894,176.5,176.47,40.16]
[1754946474275,6.13497894,176.5,176.48,0.7]
[1754946476137,6.13497894,176.51,176.48,0.7]
[1754946476568,6.13497894,176.51,176.47,39.46]
[1754946476858,6.13497894,176.51,176.49,0.7]
[1754946477063,6.13497894,176.51,176.49,40.14]
[1754946478839,6.13497894,176.51,176.5,0.7]
[1754946479456,6.16497894,176.52,176.5,0.7]
[1754946480665,0.03,176.52,176.51,45.57497894]
[1754946480836,0.03,176.52,176.51,61.38119451]
[1754946481163,1e-08,176.54,176.52,41.10621557]
[1754946481460,1e-08,176.54,176.53,60.68119451]
[1754946481637,1e-08,176.54,176.53,61.38119451]
[1754946482456,1e-08,176.54,176.53,67.04595404]
[1754946483839,1e-08,176.54,176.53,0.7]
[1754946484045,1e-08,176.54,176.53,46.27497894]
[1754946485044,1e-08,176.54,176.53,40.14]
[1754946485257,1e-08,176.54,176.53,46.27497894]
[1754946486057,1e-08,176.54,176.53,67.04595404]
[1754946489337,1e-08,176.54,176.53,60.9109751]
[1754946489564,1e-08,176.54,176.53,93.04595404]
[1754946489948,1e-08,176.54,176.53,41.80621557]
[1754946490268,1e-08,176.54,176.53,87.38119451]
[1754946496189,1e-08,176.54,176.53,26.0]
[1754946496361,1e-08,176.54,176.53,65.42]
[1754946497073,1e-08,176.54,176.53,39.42]
[1754946501395,1e-08,176.54,176.53,40.14]
[1754946501887,1e-08,176.54,176.53,39.42]
[1754946502077,1e-08,176.54,176.51,32.85497894]
[1754946502384,1e-08,176.54,176.52,40.14]
[1754946502760,1e-08,176.54,176.53,0.72]
[1754946504373,1e-08,176.54,176.53,6.85497894]
[1754946505373,1e-08,176.54,176.53,0.72]
[1754946507385,1e-08,176.54,176.52,40.14]
[1754946507785,1e-08,176.54,176.52,46.27497894]
[1754946508593,1e-08,176.54,176.52,45.55497894]
[1754946508777,1e-08,176.54,176.53,0.72]
[1754946510196,1e-08,176.54,176.53,39.42]
[1754946511082,6.13497895,176.54,176.53,39.42]
[1754946511805,11.7994176,176.54,176.53,39.42]
[1754946512297,5.66443866,176.54,176.53,39.42]
[1754946512503,1e-08,176.54,176.53,40.14]
[1754946513502,1e-08,176.54,176.53,46.27497894]
[1754946515788,1e-08,176.54,176.53,61.38119451]
[1754946518603,1e-08,176.54,176.53,55.24621557]
[1754946518810,6.13497895,176.54,176.52,26.0]
[1754946518996,1e-08,176.54,176.52,26.0]
[1754946519195,1e-08,176.54,176.53,39.42]
[1754946519586,1e-08,176.54,176.53,39.48]
[1754946520114,6.13497895,176.54,176.53,39.48]
[1754946520791,1e-08,176.54,176.53,39.48]
[1754946522012,6.13497895,176.54,176.53,39.48]
[1754946522324,6.55497895,176.54,176.53,39.48]
[1754946523708,12.2194176,176.54,176.53,39.48]
[1754946524014,11.7994176,176.54,176.53,39.48]
[1754946527117,12.2194176,176.54,176.53,39.48]
[1754946527697,11.7994176,176.54,176.53,39.48]
[1754946528410,5.66443866,176.54,176.53,39.48]
[1754946528616,1e-08,176.54,176.53,40.18]
[1754946536526,6.55497895,176.54,176.53,0.06]
[1754946537802,12.2194176,176.54,176.53,0.06]
[1754946541830,42.2194176,176.54,176.53,0.06]
[1754946551727,44.4889856,176.54,176.53,0.06]
[1754946553137,44.0689856,176.54,176.53,0.06]
[1754946553439,41.7994176,176.54,176.53,0.06]
[1754946553815,41.7994176,176.54,176.53,0.76]
[1754946554220,81.2194176,176.54,176.53,0.06]
[1754946555330,75.08443866,176.54,176.53,0.06]
[1754946555537,81.2194176,176.54,176.53,0.06]
[1754946559187,75.08443866,176.54,176.53,0.06]
[1754946559322,81.2194176,176.54,176.53,0.06]
[1754946571846,81.2194176,176.54,176.53,0.72]
[1754946572439,41.7994176,176.54,176.53,0.72]
[1754946572663,79.01000616,176.54,176.53,0.72]
[1754946573735,39.59000616,176.54,176.53,0.72]
[1754946573933,9.59000616,176.54,176.53,0.72]
[1754946574854,11.79813523,176.54,176.53,0.72]
[1754946577057,41.79813523,176.54,176.53,0.72]
[1754946577553,35.66443866,176.54,176.53,0.72]
[1754946577759,41.79813523,176.54,176.53,0.72]
[1754946578649,11.79813523,176.54,176.53,0.72]
[1754946581739,41.79813523,176.54,176.53,0.72]
[1754946588976,30.00000001,176.54,176.53,0.72]
[1754946589160,41.79813523,176.54,176.53,0.72]
[1754946589670,36.13369658,176.54,176.53,0.72]
[1754946590869,41.79813523,176.54,176.53,0.72]
[1754946591565,11.79813523,176.54,176.53,0.72]
[1754946594557,36.13369658,176.54,176.53,0.72]
[1754946594750,41.79813523,176.54,176.53,0.72]
[1754946595072,42.21813523,176.54,176.53,0.06]
[1754946595251,41.79813523,176.54,176.53,0.06]
[1754946596689,39.58993648,176.54,176.53,0.06]
[1754946597579,35.66443866,176.54,176.53,0.06]
[1754946597748,39.58993648,176.54,176.53,0.06]
[1754946598373,9.58993648,176.54,176.53,0.06]
[1754946599073,5.66443866,176.54,176.53,0.06]
[1754946599260,9.58993648,176.54,176.53,0.06]
[1754946601275,39.58993648,176.54,176.53,0.06]
[1754946602972,35.66443866,176.54,176.53,0.78]
[1754946603386,39.58993648,176.54,176.53,0.78]
[1754946608481,39.58993648,176.54,176.53,0.06]
[1754946609770,39.58993648,176.54,176.53,0.78]
[1754946611781,39.58993648,176.54,176.53,0.06]
[1754946614090,79.40993648,176.54,176.53,0.06]
[1754946614376,3.92549782,176.52,176.51,0.06]
[1754946614580,48.10418804,176.52,176.51,0.06]
[1754946614770,48.52418804,176.52,176.51,0.06]
[1754946615369,54.18926848,176.52,176.51,0.06]
[1754946615784,14.36926848,176.52,176.51,0.06]
[1754946615992,44.36926848,176.52,176.51,0.78]
[1754946616561,44.36926848,176.52,176.51,0.06]
[1754946616771,44.78926848,176.52,176.51,0.06]
[1754946619387,14.78926848,176.52,176.51,0.06]
[1754946620768,17.00107992,176.52,176.51,0.06]
[1754946622299,47.00107992,176.52,176.51,0.06]
[1754946622457,46.58107992,176.52,176.51,0.06]
[1754946625079,47.00107992,176.52,176.51,0.06]
[1754946625475,46.58107992,176.52,176.51,0.06]
[1754946632192,41.8023897,176.52,176.51,0.06]
[1754946632786,11.8023897,176.52,176.51,0.06]
[1754946636196,41.8023897,176.52,176.51,0.06]
[1754946636393,35.66508044,176.52,176.51,0.74]
[1754946636576,41.8023897,176.52,176.51,0.74]
[1754946638102,46.58107992,176.52,176.51,0.74]
[1754946639802,46.58107992,176.52,176.51,0.06]
[1754946640600,46.58107992,176.52,176.51,0.74]
[1754946640809,44.37114076,176.52,176.51,0.74]
[1754946643606,40.01245054,176.52,176.51,0.06]
[1754946644189,55.72193094,176.52,176.51,0.06]
[1754946644408,55.72193094,176.52,176.5,0.06]
[1754946644597,63.7889156,176.51,176.5,0.06]
[1754946644796,94.2089156,176.51,176.5,0.06]
[1754946645712,95.10225189,176.51,176.49,0.06]
[1754946646010,54.82859944,176.5,176.49,0.06]
[1754946646593,54.40859944,176.5,176.49,0.06]
[1754946647687,60.49432181,176.5,176.49,0.06]
[1754946648512,60.49356089,176.5,176.49,0.06]
[1754946650213,60.07356089,176.5,176.49,0.06]
[1754946651416,60.49356089,176.5,176.49,0.06]
[1754946653020,75.59977646,176.5,176.49,0.06]
[1754946653210,70.82878844,176.5,176.48,0.06]
[1754946653418,48.09459484,176.49,176.48,0.06]
[1754946653635,78.09459484,176.49,176.48,0.06]
[1754946654610,83.76063824,176.49,176.48,0.06]
[1754946656588,79.83326814,176.49,176.48,0.06]
[1754946656788,83.76063824,176.49,176.48,0.06]
[1754946660397,78.9934135,176.49,176.48,0.06]
[1754946663606,83.75954605,176.49,176.48,0.73]
[1754946665807,83.75954605,176.49,176.48,0.06]
[1754946668334,83.78954605,176.49,176.48,0.06]
[1754946674131,83.78954605,176.49,176.48,0.73]
[1754946676220,79.0234135,176.49,176.48,0.73]
[1754946676422,83.79275669,176.49,176.48,0.73]
[1754946677135,79.0234135,176.49,176.48,0.73]
[1754946682038,75.0760434,176.49,176.48,0.73]
[1754946682222,79.0034135,176.49,176.48,0.73]
[1754946686347,79.0034135,176.49,176.48,0.06]
[1754946688343,85.37277014,176.49,176.48,0.06]
[1754946690340,85.37277014,176.49,176.48,0.76]
[1754946690948,85.37277014,176.49,176.48,0.06]
[1754946694649,55.37277014,176.49,176.48,0.06]
[1754946695053,55.37277014,176.49,176.48,0.76]
[1754946696155,57.49848515,176.49,176.48,0.76]
[1754946697029,51.12912851,176.49,176.48,0.76]
[1754946697558,81.12912851,176.49,176.48,0.76]
[1754946698555,81.12912851,176.49,176.48,0.06]
[1754946698855,83.39934051,176.49,176.48,0.06]
[1754946700153,83.39934051,176.49,176.48,0.76]
[1754946703465,83.39972588,176.49,176.48,0.76]
[1754946706052,83.39972588,176.49,176.48,0.06]
[1754946707063,98.92594145,176.49,176.48,0.06]
[1754946707241,85.82929635,176.49,176.48,0.66000001]
[1754946707436,89.75666645,176.49,176.48,0.66000001]
[1754946710971,87.63056607,176.49,176.48,0.66000001]
[1754946712152,89.75644212,176.49,176.48,0.66000001]
[1754946712567,87.63056607,176.49,176.48,0.66000001]
[1754946712863,85.82915554,176.49,176.48,0.66000001]
[1754946713048,89.75652564,176.49,176.48,0.66000001]
[1754946713451,46.46915554,176.49,176.48,0.66000001]
[1754946713679,85.82915554,176.49,176.48,0.66000001]
[1754946714560,80.16309816,176.49,176.48,0.66000001]
[1754946715172,85.82914156,176.49,176.48,0.66000001]
[1754946717184,30.03,176.49,176.48,0.66000001]
[1754946717742,34.81214748,176.49,176.48,0.66000001]
[1754946719284,30.03,176.49,176.48,4.58737011]
[1754946719783,0.03,176.49,176.48,4.58737011]
[1754946721786,0.03,176.49,176.48,10.25373457]
[1754946722664,0.03,176.51,176.49,15.10621557]
[1754946722857,0.03,176.51,176.5,34.74306607]
[1754946723060,0.03,176.51,176.5,35.40306607]
[1754946723272,0.03,176.51,176.5,41.06878844]
[1754946725079,0.03,176.51,176.5,25.35930804]
[1754946725270,0.03,176.51,176.5,41.06878844]
[1754946725470,0.03,176.51,176.5,43.33745544]
[1754946726080,1e-08,176.54,176.53,15.10621557]
[1754946726268,1e-08,176.54,176.53,24.6983452]
[1754946726587,1e-08,176.54,176.53,25.3583452]
[1754946727884,1e-08,176.54,176.53,27.6266262]
[1754946728085,0.03,176.55,176.53,27.6266262]
[1754946728394,0.03,176.55,176.54,19.69358567]
[1754946729280,0.03,176.55,176.54,25.35802432]
[1754946729486,0.03,176.55,176.54,27.62617732]
[1754946736701,0.03,176.55,176.54,18.03436857]
[1754946736889,0.03,176.55,176.54,21.96173867]
[1754946737084,0.03,176.55,176.54,27.62617732]
[1754946738101,0.03,176.55,176.54,23.69880722]
[1754946738300,0.03,176.55,176.54,27.62617732]
[1754946745197,0.03,176.55,176.54,28.19262118]
[1754946745401,0.03,176.55,176.54,27.62617732]
[1754946746399,0.03,176.55,176.54,66.94617732]
[1754946748621,0.03,176.55,176.54,27.62617732]
[1754946748814,0.03,176.55,176.54,66.94617732]
[1754946750211,0.03,176.55,176.54,63.01880722]
[1754946750417,0.03,176.55,176.54,66.94617732]
[1754946753290,0.03,176.55,176.54,67.00617732]
[1754946753618,0.03,176.55,176.54,61.34173867]
[1754946753912,0.03,176.55,176.54,67.00617732]
[1754946755216,0.03,176.55,176.54,63.07880722]
[1754946755403,0.03,176.55,176.54,67.00617732]
[1754946755806,0.03,176.55,176.54,45.5755231]
[1754946756494,0.03,176.55,176.54,46.2855231]
[1754946758818,0.03,176.55,176.54,60.86065422]
[1754946758992,0.03,176.55,176.54,64.78802432]
[1754946759196,0.03,176.55,176.54,66.34604732]
[1754946759406,0.03,176.55,176.54,67.05604732]
[1754946767810,0.03,176.55,176.54,63.12867722]
[1754946768016,0.03,176.55,176.54,67.05604732]
[1754946770819,0.03,176.57,176.55,41.10621557]
[1754946771027,0.03,176.57,176.56,43.2473701]
[1754946771410,0.03,176.57,176.56,43.9273701]
[1754946771627,0.03,176.57,176.56,4.6073701]
[1754946771846,0.03,176.57,176.56,43.9273701]
[1754946772133,0.03,176.57,176.56,10.2711671]
[1754946772335,0.03,176.57,176.56,49.5911671]
[1754946775016,0.03,176.57,176.56,51.8588051]
[1754946777641,0.03,176.57,176.56,66.96502067]
[1754946778627,0.03,176.58,176.57,41.10621557]
[1754946778823,0.03,176.58,176.57,45.71358567]
[1754946779525,0.03,176.58,176.57,47.98096667]
[1754946779723,0.03,176.58,176.57,53.64444291]
[1754946780031,0.03,176.59,176.57,53.64444291]
[1754946780213,0.03,176.59,176.58,43.9073701]
[1754946780636,0.03,176.59,176.58,46.1747511]
[1754946781344,0.03,176.59,176.58,42.247381]
[1754946781638,0.03,176.59,176.58,51.83790661]
[1754946782627,0.03,176.59,176.58,51.15790661]
[1754946783622,0.03,176.59,176.58,51.83790661]
[1754946787232,0.03,176.59,176.58,45.4947511]
[1754946787448,0.03,176.59,176.58,21.30096667]
[1754946787665,4.3773701,176.59,176.54,0.06]
[1754946787957,3.9273701,176.55,176.54,0.06]
[1754946788118,9.59148791,176.55,176.54,0.06]
[1754946788319,9.95148791,176.55,176.52,0.06]
[1754946788548,3.9273701,176.53,176.52,0.06]
[1754946788730,6.13339415,176.53,176.52,0.06]
[1754946788936,6.49339415,176.53,176.52,0.06]
[1754946789131,0.36,176.53,176.52,0.06]
[1754946791050,6.49339415,176.55,176.52,0.06]
[1754946791346,6.49339415,176.55,176.53,39.32]
[1754946791532,0.36,176.55,176.53,39.32]
[1754946791878,0.36,176.54,176.53,39.32]
[1754946795961,0.36,176.54,176.53,39.38]
[1754946796335,6.13339415,176.55,176.53,39.38]
[1754946796538,6.49339415,176.55,176.53,39.38]
[1754946796737,6.49339415,176.54,176.53,39.38]
[1754946798142,12.1578328,176.54,176.53,0.06]
[1754946799142,6.49339415,176.54,176.53,0.06]
[1754946799338,150.06,176.58,176.53,45.51339415]
[1754946799554,150.06,176.58,176.54,6.13339415]
[1754946799555,161.85657161,176.58,176.54,6.13339415]
[1754946799752,155.72317746,176.58,176.54,6.13339415]
[1754946799952,0.36,176.57,176.54,6.13339415]
[1754946801255,0.36,176.57,176.55,6.13339415]
[1754946801458,0.36,176.57,176.54,6.13339415]
[1754946803361,149.7,176.58,176.55,6.79339415]
[1754946803945,0.03,176.59,176.57,6.13339415]
[1754946804157,30.0,176.58,176.57,15.10621557]
[1754946804353,0.03,176.59,176.57,15.10621557]
[1754946804650,0.03,176.59,176.58,0.66]
[1754946805245,0.03,176.59,176.58,6.79339415]
[1754946806159,0.03,176.59,176.58,6.13339415]
[1754946806361,0.03,176.59,176.58,6.79339415]
[1754946807365,0.03,176.59,176.58,27.56276523]
[1754946808365,0.03,176.59,176.58,28.12908078]
[1754946808554,0.03,176.59,176.58,56.39658978]
[1754946808967,0.03,176.59,176.58,95.73658978]
[1754946810671,0.03,176.59,176.58,95.17027423]
[1754946810872,0.03,176.59,176.58,89.50711872]
[1754946811080,0.03,176.59,176.58,2.267509]
[1754946811252,6.52339415,176.59,176.58,39.38]
[1754946811968,6.16339415,176.59,176.58,39.38]
[1754946813856,0.03,176.59,176.58,39.38]
[1754946816071,0.03,176.59,176.58,40.04]
[1754946817075,0.03,176.59,176.58,46.17339415]
[1754946817277,0.03,176.59,176.58,45.70315551]
[1754946817667,0.03,176.59,176.58,51.83654966]
[1754946818551,0.03,176.59,176.58,66.94276523]
[1754946825294,0.03,176.59,176.58,54.48621557]
[1754946825477,0.03,176.59,176.58,61.27960972]
[1754946825787,0.03,176.59,176.58,61.176481]
[1754946825985,0.03,176.59,176.58,39.34]
[1754946829593,6.52339415,176.59,176.58,39.36]
[1754946829901,0.39,176.59,176.58,39.36]
[1754946830187,6.52339415,176.59,176.58,39.36]
[1754946831575,0.39,176.59,176.58,39.36]
[1754946832883,0.39,176.59,176.54,0.06]
[1754946832884,12.18626711,176.59,176.54,0.06]
[1754946833083,6.13339415,176.55,176.54,0.06]
[1754946833269,6.13339415,176.55,176.54,39.42]
[1754946834994,6.13339415,176.56,176.54,40.08]
[1754946835196,0.36,176.58,176.54,40.08]
[1754946835399,6.13339415,176.55,176.54,40.08]
[1754946835694,6.13339415,176.55,176.54,39.42]
[1754946836279,6.13339415,176.56,176.54,40.08]
[1754946836900,6.13339415,176.56,176.55,0.66]
[1754946838094,6.13339415,176.57,176.55,0.66]
[1754946838891,6.13339415,176.56,176.55,0.66]
[1754946839674,6.13339415,176.56,176.55,0.72]
[1754946840775,149.73,176.59,176.55,6.85339415]
[1754946840976,149.73,176.59,176.56,39.36]
[1754946841194,0.03,176.59,176.57,0.66]
[1754946841389,0.03,176.59,176.58,39.36]
[1754946841994,6.52339415,176.59,176.55,39.42]
[1754946842205,6.13339415,176.56,176.55,40.08]
[1754946842589,6.13339415,176.57,176.55,40.08]
[1754946842807,6.13339415,176.57,176.55,39.42]
[1754946842981,6.13339415,176.57,176.56,0.66]
[1754946843307,6.13339415,176.57,176.55,39.42]
[1754946843614,6.13339415,176.57,176.55,40.08]
[1754946844809,0.03,176.59,176.55,39.42]
[1754946844982,6.13339415,176.56,176.55,0.06]
[1754946845189,6.49339415,176.56,176.55,0.06]
[1754946846473,12.15719115,176.56,176.55,0.06]
[1754946846781,42.15719115,176.56,176.55,0.06]
[1754946848180,12.15719115,176.56,176.55,0.06]
[1754946850089,11.79719115,176.56,176.55,0.06]
[1754946851985,41.79719115,176.56,176.55,0.06]
[1754946852815,36.13339415,176.56,176.55,0.72]
[1754946853296,36.13339415,176.56,176.55,0.06]
[1754946854615,36.13339415,176.56,176.55,0.72]
[1754946854990,30.0,176.56,176.55,0.72]
[1754946855207,36.13339415,176.56,176.55,0.72]
[1754946855511,36.13339415,176.56,176.55,0.06]
[1754946856718,41.79719115,176.56,176.55,0.06]
[1754946856899,42.15719115,176.56,176.55,0.06]
[1754946858214,41.65719115,176.56,176.55,0.06]
[1754946858707,41.29719115,176.56,176.55,0.06]
[1754946860112,35.63339415,176.56,176.55,0.77]
[1754946860418,41.29719115,176.56,176.55,0.06]
[1754946861100,41.32719115,176.56,176.55,0.06]
[1754946862216,35.66339415,176.56,176.55,0.06]
[1754946862411,29.53,176.56,176.55,0.06]
[1754946862609,35.66339415,176.56,176.55,0.06]
[1754946865018,41.68719115,176.56,176.55,0.06]
[1754946867508,41.32719115,176.56,176.55,0.06]
[1754946868216,81.04719115,176.56,176.55,0.06]
[1754946871894,85.80464258,176.56,176.55,0.06]
[1754946872095,85.44464258,176.56,176.55,0.06]
[1754946873018,80.68719115,176.56,176.55,0.06]
[1754946874322,85.44464258,176.56,176.55,0.06]
[1754946875619,96.15340672,176.56,176.55,0.06]
[1754946875816,96.15340672,176.56,176.54,0.06]
[1754946876016,10.90086192,176.55,176.54,0.06]
[1754946876319,40.90086192,176.55,176.54,0.06]
[1754946876501,41.79751196,176.55,176.54,0.77]
[1754946877206,46.56497973,176.55,176.54,0.77]
[1754946877525,30.0,176.55,176.54,0.77]
[1754946877712,29.28,176.55,176.54,6.90339415]
[1754946878122,0.03,176.56,176.54,6.90339415]
[1754946878308,0.03,176.56,176.55,6.84339415]
[1754946879199,0.03,176.56,176.55,0.71]
[1754946879398,6.16339415,176.56,176.54,0.06]
[1754946879615,6.16339415,176.56,176.54,0.77]
[1754946880510,6.13339415,176.55,176.54,0.06]
[1754946880708,6.13339415,176.55,176.54,0.77]
[1754946880905,0.03,176.56,176.54,0.77]
[1754946882605,0.03,176.56,176.54,6.90339415]
[1754946883029,0.03,176.56,176.55,0.71]
[1754946886431,6.16339415,176.56,176.54,0.06]
[1754946886813,6.16339415,176.56,176.54,0.77]
[1754946887421,6.16339415,176.56,176.55,0.72]
[1754946888120,0.03,176.56,176.55,0.72]
[1754946888407,0.03,176.56,176.55,6.85339415]
[1754946890943,6.16339415,176.56,176.54,0.06]
[1754946891439,0.03,176.56,176.54,0.78]
[1754946893938,6.16339415,176.56,176.54,0.78]
[1754946894136,6.13339415,176.55,176.54,0.06]
[1754946896049,6.85339415,176.55,176.54,0.06]
[1754946896730,4.35339415,176.55,176.54,0.06]
[1754946896931,10.01751196,176.55,176.54,0.06]
[1754946898851,9.29751196,176.55,176.54,0.06]
[1754946899940,10.01751196,176.55,176.54,0.06]
[1754946900632,149.7,176.54,176.53,0.06]
[1754946900841,156.55339415,176.54,176.53,0.06]
[1754946901226,15.10621557,176.53,176.5,0.06]
[1754946901426,12.2667883,176.51,176.5,0.06]
[1754946901828,18.65218969,176.51,176.5,0.06]
[1754946902351,48.65218969,176.51,176.5,0.06]
[1754946903148,42.51879554,176.51,176.5,0.06]
[1754946903339,48.65218969,176.51,176.5,0.06]
[1754946904048,15.10621557,176.5,176.46,0.06]
[1754946904248,6.13339415,176.48,176.46,0.06]
[1754946904638,6.85339415,176.48,176.46,0.06]
[1754946905248,36.85339415,176.48,176.46,0.06]
[1754946905547,42.51975861,176.48,176.46,0.06]
[1754946906353,192.21975861,176.48,176.46,0.06]
[1754946909039,46.25339415,176.47,176.46,0.06]
[1754946909241,76.25339415,176.47,176.46,0.06]
[1754946909858,81.9200797,176.47,176.46,0.06]
[1754946910053,6.13339415,176.46,176.45,0.06]
[1754946910355,32.85339415,176.46,176.45,0.06]
[1754946910849,62.85339415,176.46,176.45,0.06]
[1754946911435,65.12399315,176.46,176.45,0.06]
[1754946911838,70.79099983,176.46,176.45,0.06]
[1754946916046,40.79099983,176.46,176.45,0.06]
[1754946918454,55.8972154,176.46,176.45,0.06]
[1754946918661,40.79099983,176.46,176.44,0.06]
[1754946918857,46.24339415,176.45,176.44,0.06]
[1754946919238,195.94339415,176.45,176.44,0.06]
[1754946919461,198.21412115,176.45,176.44,0.06]
[1754946919852,233.881449,176.45,176.44,0.06]
[1754946920654,230.940722,176.45,176.44,0.06]
[1754946921364,191.500722,176.45,176.44,0.06]
[1754946921565,30.0,176.45,176.44,0.72]
[1754946922249,36.13339415,176.45,176.44,0.72]
[1754946922470,30.0,176.45,176.44,0.72]
[1754946922764,36.13339415,176.45,176.44,0.72]
[1754946923360,42.470722,176.45,176.44,0.06]
[1754946923582,12.470722,176.45,176.44,0.06]
[1754946923761,42.470722,176.45,176.44,0.06]
[1754946923953,57.57693757,176.45,176.42,0.06]
[1754946924273,32.13339415,176.43,176.42,0.06]
[1754946924681,38.47136444,176.43,176.42,0.06]
[1754946924971,68.47136444,176.43,176.42,0.06]
[1754946925747,67.80136444,176.43,176.42,0.06]
[1754946926477,68.47136444,176.43,176.42,0.06]
[1754946929678,67.80136444,176.43,176.42,0.06]
[1754946930575,35.66797029,176.43,176.42,0.72]
[1754946930871,41.80136444,176.43,176.42,0.72]
[1754946932866,36.13339415,176.43,176.42,0.72]
[1754946933076,30.0,176.43,176.42,0.72]
[1754946933573,6.13339415,176.45,176.42,0.72]
[1754946933776,5.66702407,176.46,176.42,0.72]
[1754946933962,6.13339415,176.46,176.42,0.72]
[1754946934174,45.59339415,176.47,176.42,6.85339415]
[1754946934531,155.83339415,176.47,176.43,0.66]
[1754946934656,6.13339415,176.46,176.43,0.66]
[1754946937493,6.13339415,176.45,176.42,0.06]
[1754946937656,6.13339415,176.45,176.43,0.66]
[1754946937854,6.13339415,176.44,176.43,0.66]
[1754946938058,6.13339415,176.44,176.42,0.06]
[1754946938274,6.13339415,176.43,176.42,0.06]
[1754946938484,6.13339415,176.43,176.42,0.72]
[1754946941481,11.80136444,176.43,176.42,0.06]
[1754946941676,12.47136444,176.43,176.42,0.06]
[1754946942571,44.60475859,176.43,176.41,0.06]
[1754946942770,52.3967883,176.42,176.41,0.06]
[1754946943684,58.06507987,176.42,176.41,0.06]
[1754946943882,73.17129544,176.42,176.41,0.06]
[1754946944104,73.17129544,176.42,176.4,0.36748855]
[1754946944394,12.9367883,176.41,176.4,0.36748855]
[1754946944966,0.67,176.41,176.4,0.36748855]
[1754946945165,12.9367883,176.41,176.4,0.36748855]
[1754946945797,48.60540119,176.41,176.4,0.36748855]
[1754946947877,198.30540119,176.41,176.4,0.36748855]
[1754946948781,185.36861289,176.41,176.4,0.36748855]
[1754946949102,191.50200704,176.41,176.4,0.36748855]
[1754946951382,192.15200704,176.41,176.4,0.36748855]
[1754946951897,198.28540119,176.41,176.4,0.36748855]
[1754946953378,185.83339415,176.41,176.4,1.08748855]
[1754946953582,185.83339415,176.41,176.4,0.36748855]
[1754946953779,36.13339415,176.41,176.4,0.36748855]
[1754946954119,36.13339415,176.41,176.4,1.08748855]
[1754946954324,30.0,176.41,176.4,1.08748855]
[1754946954611,0.03,176.46,176.4,12.88981694]
[1754946954910,0.03,176.46,176.44,6.13339415]
[1754946955201,0.03,176.46,176.4,12.16981694]
[1754946955406,0.03,176.46,176.45,6.13339415]
[1754946955598,30.03,176.46,176.45,6.13339415]
[1754946955900,30.03,176.46,176.43,15.10621557]
[1754946955901,0.03,176.45,176.43,26.0]
[1754946956109,0.03,176.45,176.43,32.13339415]
[1754946956416,0.03,176.45,176.44,6.13339415]
[1754946956582,0.03,176.45,176.44,21.23960972]
[1754946957893,0.03,176.45,176.44,26.90725877]
[1754946958088,0.03,176.46,176.45,15.10621557]
[1754946958294,0.03,176.46,176.45,21.8063425]
[1754946959389,0.03,176.46,176.45,15.67294835]
[1754946959590,0.03,176.46,176.45,6.13339415]
[1754946959914,0.03,176.46,176.45,66.48693757]
[1754946960282,0.03,176.46,176.45,6.13339415]